fUSD/lending_fUSD_20250320
["ID","MTS","AMOUNT","RATE_DAILY","PERIOD"]
[356436733,1742449845932,-515.82099314,0.00028744,2]
[356436734,1742449845944,-2411.33716029,0.00028744,2]
[356436737,1742450012587,-202.0,0.00023,2]
[356436739,1742450858086,-150.0,0.00022,5]
[356436740,1742450933429,-150.0,0.00021,2]
[356436750,1742451031718,-100.0,0.00021,2]
[356436751,1742451031727,-735.85692776,0.00022,5]
[356436752,1742451031901,-1240.14307224,0.00022,5]
[356436753,1742451031911,-150.0,0.00024666,2]
[356436754,1742451031921,-350.0,0.00024766,2]
[356436755,1742451031931,-150.0,0.00024766,2]
[356436756,1742451031940,-252.4,0.00025879,2]
[356436757,1742451031949,-152.09,0.00026849,2]
[356436758,1742451031959,-150.0,0.00026859,2]
[356436759,1742451031969,-350.0,0.00027243,2]
[356436760,1742451031979,-150.0,0.00027243,2]
[356436761,1742451031988,-295.6293,0.00027308,2]
[356436762,1742451031999,-203.23642109,0.00027341,120]
[356436763,1742451032019,-204.81357891,0.00027341,120]
[356436764,1742451032029,-783.65442109,0.00027381,2]
[356436765,1742451032040,-216.34557891,0.00027381,2]
[356436766,1742451032050,-150.0,0.00027407,7]
[356436767,1742451032059,-3286.08,0.00027408,2]
[356436768,1742451032068,-232.0,0.00027413,2]
[356436769,1742451032081,-23900.0,0.00027414,2]
[356436770,1742451032091,-187.11,0.00027497,2]
[356436771,1742451032100,-153.05,0.00027754,2]
[356436772,1742451032110,-170.51,0.00027793,2]
[356436773,1742451032119,-668.41,0.00027793,2]
[356436774,1742451032127,-455.83,0.00027804,2]
[356436776,1742451032135,-153.05,0.0002788,2]
[356436778,1742451032141,-205.27581378,0.000279,4]
[356436779,1742451032148,-150.0,0.00027999,2]
[356436781,1742451032155,-189.01036195,0.00028,2]
[356436783,1742451032163,-32062.54480811,0.00028,2]
[356436785,1742451032172,-153.05,0.00028006,2]
[356436787,1742451032181,-153.05,0.00028132,2]
[356436789,1742451032190,-252.4,0.00028143,2]
[356436791,1742451032199,-153.05,0.00028258,2]
[356436793,1742451032208,-153.05,0.00028385,2]
[356436794,1742451032217,-175.12041,0.0002846,42]
[356436796,1742451032226,-153.05,0.00028511,2]
[356436799,1742451032236,-300.0,0.000286,2]
[356436801,1742451032245,-393.6514164,0.00028614,4]
[356436803,1742451032255,-153.05,0.00028637,2]
[356436805,1742451032264,-2500.0,0.00028643,2]
[356436806,1742451032273,-500.0,0.00028698,2]
[356436808,1742451032283,-500.0,0.00028698,2]
[356436809,1742451032292,-224.70506651,0.00028698,2]
[356436810,1742451032302,-169.703,0.00028698,20]
[356436811,1742451032311,-52909.4652,0.00028699,2]
[356436812,1742451032320,-10470.38378193,0.000287,10]
[356436813,1742451032330,-1000.0,0.000287,2]
[356436814,1742451032339,-1889.3086,0.00028708,2]
[356436815,1742451032349,-265.6996,0.00028708,2]
[356436816,1742451032358,-1380.6147,0.00028762,2]
[356436817,1742451032368,-995.2807,0.00028762,2]
[356436818,1742451032378,-153.05,0.00028763,2]
[356436819,1742451032387,-201.09686279,0.0002879,2]
[356436820,1742451032397,-500.0,0.00028797,2]
[356436821,1742451032406,-401.73515018,0.00028797,2]
[356436822,1742451032415,-500.0,0.00028797,2]
[356436823,1742451032424,-500.0,0.00028797,2]
[356436824,1742451032433,-500.0,0.00028797,2]
[356436825,1742451032443,-500.0,0.00028797,2]
[356436826,1742451032452,-269.20385638,0.00028797,2]
[356436827,1742451032461,-500.0,0.00028797,2]
[356436828,1742451032471,-1000.0,0.000288,2]
[356436829,1742451032480,-500.0,0.00028806,2]
[356436830,1742451032489,-456.4574269,0.00028806,2]
[356436831,1742451032499,-500.0,0.00028806,2]
[356436832,1742451032508,-574.52,0.00028806,2]
[356436833,1742451032517,-500.0,0.00028806,2]
[356436834,1742451032526,-500.0,0.00028806,2]
[356436835,1742451032536,-500.0,0.00028806,2]
[356436836,1742451032546,-2319.03,0.00028806,2]
[356436837,1742451032556,-500.0,0.00028806,2]
[356436838,1742451032577,-500.0,0.00028806,2]
[356436839,1742451032600,-533.4203109,0.00028806,2]
[356436840,1742451032625,-500.0,0.00028806,2]
[356436841,1742451032645,-500.0,0.00028806,2]
[356436842,1742451032667,-159.35901137,0.00028807,12]
[356436843,1742451032688,-30194.60411372,0.00028807,12]
[356436844,1742451032711,-995.34,0.00028809,2]
[356436845,1742451032741,-349.98369066,0.00028816,2]
[356436846,1742451032770,-1635.997765,0.00028835,2]
[356436847,1742451032792,-500.0,0.00028852,2]
[356436848,1742451032813,-500.0,0.00028852,2]
[356436849,1742451032837,-293.27167959,0.00028852,2]
[356436850,1742451032860,-500.0,0.00028852,2]
[356436851,1742451032871,-500.0,0.00028852,2]
[356436852,1742451032881,-528.51,0.00028861,2]
[356436853,1742451032890,-500.0,0.00028861,2]
[356436854,1742451032900,-500.0,0.00028861,2]
[356436855,1742451032910,-500.0,0.00028861,2]
[356436856,1742451032919,-500.0,0.00028861,2]
[356436857,1742451032929,-500.0,0.00028861,2]
[356436858,1742451032939,-510.19,0.00028861,2]
[356436859,1742451032948,-500.0,0.00028861,2]
[356436860,1742451032968,-500.0,0.00028861,2]
[356436861,1742451032979,-500.0,0.00028861,2]
[356436862,1742451032990,-515.10746169,0.00028861,2]
[356436863,1742451033000,-611.3,0.00028861,2]
[356436864,1742451033013,-500.0,0.00028861,2]
[356436865,1742451033023,-500.17,0.00028861,2]
[356436866,1742451033033,-396.01737382,0.00028861,2]
[356436867,1742451033045,-510.36109894,0.00028861,2]
[356436868,1742451033055,-500.0,0.00028861,2]
[356436869,1742451033065,-500.0,0.00028861,2]
[356436870,1742451033075,-595.75,0.00028861,2]
[356436871,1742451033086,-500.0,0.00028861,2]
[356436872,1742451033096,-547.6,0.00028861,2]
[356436873,1742451033106,-500.0,0.00028861,2]
[356436874,1742451033116,-617.02739074,0.00028861,2]
[356436875,1742451033126,-500.0,0.00028861,2]
[356436876,1742451033135,-512.22856093,0.00028861,2]
[356436877,1742451033145,-500.0,0.00028861,2]
[356436878,1742451033155,-506.92011699,0.00028861,2]
[356436879,1742451033165,-200.0,0.00028861,2]
[356436880,1742451033175,-500.0,0.00028861,2]
[356436881,1742451033186,-500.0,0.00028861,2]
[356436882,1742451033196,-532.24,0.00028861,2]
[356436883,1742451033206,-551.82075042,0.00028861,2]
[356436884,1742451033216,-500.0,0.00028861,2]
[356436885,1742451033226,-500.0,0.00028861,2]
[356436886,1742451033236,-516.69508348,0.00028861,2]
[356436887,1742451033246,-195.956261,0.00028861,2]
[356436888,1742451033256,-500.0,0.00028861,2]
[356436889,1742451033266,-526.75030233,0.00028861,2]
[356436890,1742451033276,-524.85933211,0.00028861,2]
[356436891,1742451033286,-500.0,0.00028861,2]
[356436892,1742451033296,-500.0,0.00028861,2]
[356436893,1742451033306,-517.36569792,0.00028861,2]
[356436894,1742451033316,-500.0,0.00028861,2]
[356436895,1742451033325,-500.0,0.00028861,2]
[356436896,1742451033335,-556.50657679,0.00028861,2]
[356436897,1742451033345,-500.0,0.00028861,2]
[356436898,1742451033355,-561.68,0.00028861,2]
[356436899,1742451033364,-500.0,0.00028861,2]
[356436900,1742451033374,-500.0,0.00028861,2]
[356436901,1742451033384,-500.0,0.00028861,2]
[356436902,1742451033394,-500.0,0.00028861,2]
[356436903,1742451033404,-500.0,0.00028861,2]
[356436904,1742451033414,-500.0,0.00028861,2]
[356436905,1742451033424,-515.44,0.00028861,2]
[356436906,1742451033436,-500.0,0.00028861,2]
[356436907,1742451033446,-500.0,0.00028861,2]
[356436908,1742451033456,-500.0,0.00028861,2]
[356436909,1742451033466,-500.0,0.00028861,2]
[356436910,1742451033476,-500.0,0.00028861,2]
[356436911,1742451033486,-500.0,0.00028861,2]
[356436912,1742451033496,-500.0,0.00028861,2]
[356436913,1742451033506,-500.0,0.00028861,2]
[356436914,1742451033516,-500.0,0.00028861,2]
[356436915,1742451033526,-500.0,0.00028861,2]
[356436916,1742451033536,-500.0,0.00028861,2]
[356436917,1742451033547,-500.0,0.00028861,2]
[356436918,1742451033557,-507.56069931,0.00028861,2]
[356436919,1742451033567,-500.0,0.00028861,2]
[356436920,1742451033578,-577.74,0.00028861,2]
[356436921,1742451033588,-500.0,0.00028861,2]
[356436922,1742451033599,-500.0,0.00028861,2]
[356436923,1742451033610,-520.80391456,0.00028861,2]
[356436924,1742451033620,-500.0,0.00028861,2]
[356436925,1742451033631,-500.0,0.00028861,2]
[356436926,1742451033641,-500.0,0.00028861,2]
[356436927,1742451033650,-515.40749794,0.00028861,2]
[356436928,1742451033660,-500.0,0.00028861,2]
[356436929,1742451033670,-500.0,0.00028861,2]
[356436930,1742451033680,-500.0,0.00028861,2]
[356436931,1742451033690,-500.0,0.00028861,2]
[356436932,1742451033700,-500.0,0.00028861,2]
[356436933,1742451033710,-634.85,0.00028861,2]
[356436934,1742451033720,-500.0,0.00028861,2]
[356436935,1742451033730,-500.0,0.00028861,2]
[356436936,1742451033740,-500.0,0.00028861,2]
[356436937,1742451033750,-500.0,0.00028861,2]
[356436938,1742451033760,-500.0,0.00028861,2]
[356436939,1742451033770,-552.77,0.00028861,2]
[356436940,1742451033780,-284.35551027,0.00028861,2]
[356436941,1742451033790,-500.0,0.00028861,2]
[356436942,1742451033800,-500.0,0.00028861,2]
[356436943,1742451033809,-500.0,0.00028861,2]
[356436944,1742451033820,-500.0,0.00028861,2]
[356436945,1742451033830,-500.0,0.00028861,2]
[356436946,1742451033840,-585.52,0.00028861,2]
[356436947,1742451033850,-506.16469356,0.00028861,2]
[356436948,1742451033860,-500.0,0.00028861,2]
[356436949,1742451033870,-500.0,0.00028861,2]
[356436950,1742451033880,-500.0,0.00028861,2]
[356436951,1742451033890,-500.0,0.00028861,2]
[356436952,1742451033900,-500.0,0.00028861,2]
[356436953,1742451033909,-500.0,0.00028861,2]
[356436954,1742451033919,-500.0,0.00028861,2]
[356436955,1742451033929,-262.53,0.00028861,2]
[356436956,1742451033939,-553.77001141,0.00028861,2]
[356436957,1742451033948,-500.0,0.00028861,2]
[356436958,1742451033958,-500.0,0.00028861,2]
[356436959,1742451033968,-118252.31,0.00028861,2]
[356436960,1742451033978,-500.0,0.00028861,2]
[356436961,1742451033987,-500.0,0.00028861,2]
[356436962,1742451033997,-500.0,0.00028861,2]
[356436963,1742451034011,-500.0,0.00028861,2]
[356436964,1742451034021,-500.0,0.00028861,2]
[356436965,1742451034031,-500.0,0.00028861,2]
[356436966,1742451034040,-500.0,0.00028861,2]
[356436967,1742451034051,-2319.03,0.00028861,2]
[356436968,1742451034060,-500.0,0.00028861,2]
[356436969,1742451034069,-532.26342894,0.00028861,2]
[356436970,1742451034079,-568.9989,0.00028863,2]
[356436971,1742451034089,-995.34,0.00028884,2]
[356436972,1742451034098,-500.8117686,0.00028888,30]
[356436973,1742451034108,-153.05,0.00028889,2]
[356436974,1742451034118,-1635.93,0.000289,2]
[356436975,1742451034127,-1000.0,0.000289,2]
[356436976,1742451034137,-500.0,0.00028907,2]
[356436977,1742451034147,-626.58615719,0.00028907,2]
[356436978,1742451034158,-500.0,0.00028907,2]
[356436979,1742451034168,-500.0,0.00028907,2]
[356436980,1742451034177,-151.0,0.00028908,7]
[356436981,1742451034187,-251.968254,0.00028908,7]
[356436982,1742451034196,-151.0,0.00028908,7]
[356436983,1742451034206,-252.877616,0.00028908,7]
[356436984,1742451034216,-151.0,0.00028908,7]
[356436985,1742451034226,-151.0,0.00028908,7]
[356436986,1742451034235,-277.533163,0.00028908,7]
[356436987,1742451034244,-157.90733,0.00028908,7]
[356436988,1742451034254,-157.90733,0.00028908,7]
[356436989,1742451034263,-151.0,0.00028908,7]
[356436990,1742451034273,-222.266949,0.00028908,7]
[356436991,1742451034282,-222.266949,0.00028908,7]
[356436992,1742451034292,-385.716645,0.00028908,7]
[356436993,1742451034302,-151.0,0.00028908,7]
[356436994,1742451034311,-385.716645,0.00028908,7]
[356436995,1742451034321,-151.978708,0.00028908,7]
[356436996,1742451034330,-151.895528,0.00028908,7]
[356436997,1742451034339,-151.0,0.00028908,7]
[356436998,1742451034349,-151.0,0.00028908,7]
[356436999,1742451034358,-288.183613,0.00028908,7]
[356437000,1742451034368,-288.183613,0.00028908,7]
[356437001,1742451034378,-500.0,0.00028916,2]
[356437002,1742451034387,-442.79,0.00028916,2]
[356437003,1742451034397,-345.54,0.00028916,2]
[356437004,1742451034407,-500.0,0.00028916,2]
[356437005,1742451034416,-535.86412017,0.00028916,2]
[356437006,1742451034425,-503.68,0.00028916,2]
[356437007,1742451034435,-500.0,0.00028916,2]
[356437008,1742451034444,-500.0,0.00028916,2]
[356437009,1742451034453,-500.0,0.00028916,2]
[356437010,1742451034463,-500.0,0.00028916,2]
[356437011,1742451034472,-500.0,0.00028916,2]
[356437012,1742451034482,-500.0,0.00028916,2]
[356437013,1742451034491,-330.24,0.00028916,2]
[356437014,1742451034500,-271.34,0.00028916,2]
[356437015,1742451034510,-500.0,0.00028916,2]
[356437016,1742451034519,-175.21,0.00028916,2]
[356437017,1742451034528,-500.0,0.00028916,2]
[356437018,1742451034538,-500.0,0.00028916,2]
[356437019,1742451034547,-500.0,0.00028916,2]
[356437020,1742451034556,-216.36,0.00028916,2]
[356437021,1742451034566,-580.65,0.00028916,2]
[356437022,1742451034575,-253.55,0.00028916,2]
[356437023,1742451034585,-500.0,0.00028916,2]
[356437024,1742451034594,-500.0,0.00028916,2]
[356437025,1742451034604,-216.58,0.00028916,2]
[356437026,1742451034613,-605.37,0.00028916,2]
[356437027,1742451034622,-500.0,0.00028916,2]
[356437028,1742451034631,-259.42,0.00028916,2]
[356437029,1742451034641,-500.0,0.00028916,2]
[356437030,1742451034650,-500.0,0.00028916,2]
[356437031,1742451034659,-500.0,0.00028916,2]
[356437032,1742451034669,-500.0,0.00028916,2]
[356437033,1742451034679,-500.0,0.00028916,2]
[356437034,1742451034688,-441.77981146,0.00028916,2]
[356437035,1742451034698,-500.0,0.00028916,2]
[356437036,1742451034707,-451.25067644,0.00028916,2]
[356437037,1742451034718,-642.97638782,0.00028916,2]
[356437038,1742451034728,-500.0,0.00028916,2]
[356437039,1742451034737,-118252.31,0.00028916,2]
[356437040,1742451034747,-500.0,0.00028916,2]
[356437041,1742451034756,-422.96959696,0.00028916,2]
[356437042,1742451034766,-500.0,0.00028916,2]
[356437043,1742451034775,-500.0,0.00028916,2]
[356437044,1742451034784,-372.39,0.00028916,2]
[356437045,1742451034794,-500.0,0.00028916,2]
[356437046,1742451034803,-500.0,0.00028916,2]
[356437047,1742451034812,-2319.03,0.00028916,2]
[356437048,1742451034822,-480.50231079,0.00028916,2]
[356437049,1742451034832,-151.0,0.00028917,7]
[356437050,1742451034841,-151.0,0.00028917,7]
[356437051,1742451034851,-167.303933,0.00028917,7]
[356437052,1742451034860,-167.303933,0.00028917,7]
[356437053,1742451034870,-193.406888,0.00028917,7]
[356437054,1742451034879,-151.0,0.00028917,7]
[356437055,1742451034888,-151.0,0.00028917,7]
[356437056,1742451034897,-151.0,0.00028917,7]
[356437057,1742451034907,-216.945873,0.00028917,7]
[356437058,1742451034916,-151.0,0.00028917,7]
[356437059,1742451034926,-216.945873,0.00028917,7]
[356437060,1742451034935,-151.0,0.00028917,7]
[356437061,1742451034945,-151.0,0.00028917,7]
[356437062,1742451034954,-151.0,0.00028917,7]
[356437063,1742451034966,-1302.947433,0.00028917,7]
[356437064,1742451034976,-1302.947433,0.00028917,7]
[356437065,1742451034985,-151.0,0.00028917,7]
[356437066,1742451034996,-152.189027,0.00028917,7]
[356437067,1742451035011,-152.189027,0.00028917,7]
[356437068,1742451035020,-151.0,0.00028917,7]
[356437069,1742451035029,-151.0,0.00028917,7]
[356437070,1742451035038,-317.141092,0.00028917,7]
[356437071,1742451035049,-317.141092,0.00028917,7]
[356437072,1742451035058,-151.0,0.00028917,7]
[356437073,1742451035067,-151.0,0.00028917,7]
[356437074,1742451035076,-151.0,0.00028918,7]
[356437075,1742451035086,-151.0,0.00028918,7]
[356437076,1742451035096,-995.34,0.00028959,2]
[356437077,1742451035105,-150.0,0.00028959,7]
[356437078,1742451035114,-150.0,0.00028959,7]
[356437079,1742451035123,-150.0,0.00028959,7]
[356437080,1742451035132,-500.0,0.00028962,2]
[356437081,1742451035141,-500.0,0.00028962,2]
[356437082,1742451035151,-500.0,0.00028962,2]
[356437083,1742451035160,-151.0,0.00028963,7]
[356437084,1742451035169,-151.0,0.00028963,7]
[356437085,1742451035178,-151.0,0.00028963,7]
[356437086,1742451035187,-151.0,0.00028963,7]
[356437087,1742451035196,-157.90733,0.00028963,7]
[356437088,1742451035206,-157.90733,0.00028963,7]
[356437089,1742451035215,-151.0,0.00028963,7]
[356437090,1742451035403,-222.266949,0.00028963,7]
[356437091,1742451035412,-222.266949,0.00028963,7]
[356437092,1742451035422,-385.716645,0.00028963,7]
[356437093,1742451035432,-151.0,0.00028963,7]
[356437094,1742451035441,-385.716645,0.00028963,7]
[356437095,1742451035450,-151.0,0.00028963,7]
[356437096,1742451035460,-151.0,0.00028963,7]
[356437097,1742451035469,-288.183613,0.00028963,7]
[356437098,1742451035479,-151.0,0.00028963,7]
[356437099,1742451035488,-288.183613,0.00028963,7]
[356437100,1742451035497,-500.0,0.00028971,2]
[356437101,1742451035507,-500.0,0.00028971,2]
[356437102,1742451035516,-335.01,0.00028971,2]
[356437103,1742451035525,-391.13,0.00028971,2]
[356437104,1742451035535,-500.0,0.00028971,2]
[356437105,1742451035544,-500.0,0.00028971,2]
[356437106,1742451035553,-500.0,0.00028971,2]
[356437107,1742451035563,-500.0,0.00028971,2]
[356437108,1742451035572,-438.85,0.00028971,2]
[356437109,1742451035581,-500.0,0.00028971,2]
[356437110,1742451035593,-500.0,0.00028971,2]
[356437111,1742451035615,-500.0,0.00028971,2]
[356437112,1742451035638,-500.0,0.00028971,2]
[356437113,1742451035659,-500.0,0.00028971,2]
[356437114,1742451035679,-270.74,0.00028971,2]
[356437115,1742451035700,-500.0,0.00028971,2]
[356437116,1742451035723,-500.0,0.00028971,2]
[356437117,1742451035743,-500.0,0.00028971,2]
[356437118,1742451035766,-306.42614965,0.00028971,2]
[356437119,1742451035787,-500.0,0.00028971,2]
[356437120,1742451035809,-500.0,0.00028971,2]
[356437121,1742451035829,-332.05965585,0.00028971,2]
[356437122,1742451035851,-89792.42107353,0.00028971,2]
[356437126,1742451037656,-8155.7,0.00028971,2]
[356437127,1742451037668,-804.32,0.00028971,2]
[356437128,1742451037749,-13049.56183272,0.00028971,2]
[356437129,1742451037770,-401.616215,0.00028971,2]
[356437130,1742451037865,-358.1318956,0.00028971,2]
[356437131,1742451037959,-1529.14655895,0.00028971,2]
[356437132,1742451037983,-773.97421782,0.00028971,2]
[356437133,1742451038008,-3387.43820638,0.00028971,2]
[356437134,1742451038017,-319.5553214,0.00028971,2]
[356437135,1742451038027,-500.0,0.00028971,2]
[356437136,1742451038037,-500.0,0.00028971,2]
[356437137,1742451038047,-151.0,0.00028971,7]
[356437138,1742451038056,-500.0,0.00028971,2]
[356437139,1742451038066,-151.0,0.00028971,7]
[356437140,1742451038074,-500.0,0.00028971,2]
[356437141,1742451038085,-151.0,0.00028971,7]
[356437142,1742451038095,-2319.03,0.00028971,2]
[356437143,1742451038104,-151.0,0.00028971,7]
[356437144,1742451038114,-151.0,0.00028971,7]
[356437145,1742451038123,-151.0,0.00028972,7]
[356437146,1742451038133,-151.0,0.00028972,7]
[356437147,1742451038142,-151.0,0.00028972,7]
[356437148,1742451038151,-151.0,0.00028972,7]
[356437149,1742451038160,-151.0,0.00028972,7]
[356437150,1742451038170,-224.006382,0.00028972,7]
[356437151,1742451038179,-151.0,0.00028972,7]
[356437152,1742451038188,-151.0,0.00028972,7]
[356437154,1742451038197,-151.0,0.00028972,7]
[356437156,1742451038207,-151.0,0.00028972,7]
[356437158,1742451038216,-151.0,0.00028972,7]
[356437160,1742451038226,-169.90035,0.00028972,7]
[356437162,1742451038236,-151.0,0.00028972,7]
[356437164,1742451038245,-167.314645,0.00028972,7]
[356437166,1742451038254,-167.314645,0.00028972,7]
[356437168,1742451038264,-154.372326,0.00028972,7]
[356437170,1742451038273,-151.0,0.00028972,7]
[356437171,1742451038282,-151.0,0.00028972,7]
[356437172,1742451038291,-167.303933,0.00028972,7]
[356437173,1742451038301,-167.303933,0.00028972,7]
[356437174,1742451038310,-158.954416,0.00028972,7]
[356437175,1742451038319,-151.0,0.00028972,7]
[356437176,1742451038329,-151.0,0.00028972,7]
[356437177,1742451038338,-216.945873,0.00028972,7]
[356437178,1742451038347,-151.0,0.00028972,7]
[356437179,1742451038357,-216.945873,0.00028972,7]
[356437180,1742451038366,-151.0,0.00028972,7]
[356437181,1742451038376,-151.0,0.00028972,7]
[356437182,1742451038385,-193.84,0.00028972,7]
[356437183,1742451038394,-1302.947433,0.00028972,7]
[356437184,1742451038404,-1302.947433,0.00028972,7]
[356437185,1742451038413,-151.0,0.00028972,7]
[356437186,1742451038423,-152.189027,0.00028972,7]
[356437187,1742451038432,-152.189027,0.00028972,7]
[356437188,1742451038441,-151.0,0.00028972,7]
[356437189,1742451038451,-151.0,0.00028972,7]
[356437190,1742451038460,-317.141092,0.00028972,7]
[356437191,1742451038469,-317.141092,0.00028972,7]
[356437192,1742451038479,-151.0,0.00028972,7]
[356437193,1742451038488,-151.0,0.00028972,7]
[356437194,1742451038497,-500.0,0.00028973,2]
[356437195,1742451038507,-151.0,0.00028973,7]
[356437196,1742451038516,-151.0,0.00028973,7]
[356437197,1742451038525,-786.946942,0.00029,6]
[356437198,1742451038535,-1388.81595367,0.00029,2]
[356437200,1742451039993,-247.11404633,0.00029,2]
[356437201,1742451040007,-1217.0,0.00029,2]
[356437202,1742451040018,-200.0,0.00029002,2]
[356437203,1742451040028,-150.0,0.00029003,7]
[356437204,1742451040037,-153.05,0.00029015,2]
[356437205,1742451040047,-500.0,0.00029016,2]
[356437206,1742451040057,-350.29350146,0.00029016,2]
[356437207,1742451040066,-258.86378016,0.00029016,2]
[356437208,1742451040076,-151.0,0.00029017,7]
[356437209,1742451040086,-151.0,0.00029017,7]
[356437210,1742451040095,-41.67324354,0.00029017,7]
[356437211,1742451040106,-110.13622746,0.00029017,7]
[356437212,1742451040116,-157.366206,0.00029017,7]
[356437213,1742451040125,-157.90733,0.00029017,7]
[356437214,1742451040134,-157.90733,0.00029017,7]
[356437215,1742451040143,-151.0,0.00029017,7]
[356437216,1742451040151,-222.266949,0.00029017,7]
[356437217,1742451040159,-222.266949,0.00029017,7]
[356437218,1742451040169,-385.716645,0.00029017,7]
[356437219,1742451040178,-169.104316,0.00029017,7]
[356437220,1742451040188,-26.16502714,0.00029017,7]
[356437221,1742451040199,-359.55161786,0.00029017,7]
[356437222,1742451040208,-151.0,0.00029017,7]
[356437223,1742451040217,-151.0,0.00029017,7]
[356437224,1742451040226,-288.183613,0.00029017,7]
[356437225,1742451040236,-151.0,0.00029017,7]
[356437226,1742451040246,-288.183613,0.00029017,7]
[356437227,1742451040255,-500.0,0.00029026,2]
[356437228,1742451040265,-16.36733932,0.00029026,2]
[356437229,1742451040276,-483.63266068,0.00029026,2]
[356437230,1742451040285,-500.0,0.00029026,2]
[356437231,1742451040294,-500.0,0.00029026,2]
[356437232,1742451040304,-500.0,0.00029026,2]
[356437233,1742451040313,-500.0,0.00029026,2]
[356437234,1742451040322,-500.0,0.00029026,2]
[356437235,1742451040331,-500.0,0.00029026,2]
[356437236,1742451040341,-500.0,0.00029026,2]
[356437237,1742451040350,-500.0,0.00029026,2]
[356437238,1742451040359,-500.0,0.00029026,2]
[356437239,1742451040368,-151.976763,0.00029026,7]
[356437240,1742451040377,-167.303933,0.00029026,7]
[356437241,1742451040387,-167.303933,0.00029026,7]
[356437242,1742451040397,-500.0,0.00029026,2]
[356437243,1742451040406,-500.0,0.00029026,2]
[356437244,1742451040415,-151.0,0.00029026,7]
[356437245,1742451040424,-500.0,0.00029026,2]
[356437247,1742451040433,-500.0,0.00029026,2]
[356437249,1742451040443,-151.0,0.00029026,7]
[356437250,1742451040452,-500.0,0.00029026,2]
[356437251,1742451040461,-216.945873,0.00029026,7]
[356437252,1742451040470,-151.0,0.00029026,7]
[356437253,1742451040479,-216.945873,0.00029026,7]
[356437254,1742451040488,-151.0,0.00029026,7]
[356437255,1742451040497,-151.0,0.00029026,7]
[356437256,1742451040506,-1302.947433,0.00029026,7]
[356437257,1742451040515,-1302.947433,0.00029026,7]
[356437258,1742451040524,-151.0,0.00029026,7]
[356437259,1742451040533,-152.189027,0.00029026,7]
[356437260,1742451040542,-142.55517597,0.00029026,7]
[356437261,1742451040554,-9.63385103,0.00029026,7]
[356437262,1742451040563,-300.86614897,0.00029026,2]
[356437266,1742451042790,-151.0,0.00028971,7]
[356437267,1742451042801,-3184.11275113,0.00029026,2]
[356437268,1742451042814,-2035.08513691,0.00029026,2]
[356437270,1742451042825,-1802.836122,0.00029026,2]
[356437271,1742451042837,-15196.0458,0.00029026,2]
[356437272,1742451043363,-606.34355227,0.00029026,2]
[356437273,1742451043375,-500.0,0.00029026,2]
[356437274,1742451043386,-597.29142773,0.00029026,2]
[356437275,1742451043398,-793.62008107,0.00029026,2]
[356437276,1742451043411,-429.543978,0.00029026,2]
[356437279,1742451045808,-500.0,0.00028806,2]
[356437280,1742451045818,-500.0,0.00028861,2]
[356437281,1742451045827,-500.0,0.00028916,2]